bitfinex/quotes_ETHUSD_20250529
["timestamp","ask_amount","ask_price","bid_price","bid_amount"]
[1748561335787,3.982,2634.1,2634.0,2.60417]
[1748561337622,0.6667,2634.3,2634.1,2.766361]
[1748561337837,3.982,2634.2,2634.1,2.766361]
[1748561339154,3.982,2634.2,2633.9,13.79657144]
[1748561339324,3.982,2634.2,2634.1,10.0]
[1748561339524,3.982,2634.2,2634.0,10.0]
[1748561340034,3.982,2634.2,2633.9,12.12899285]
[1748561340230,3.982,2634.2,2634.1,10.0]
[1748561340843,3.982,2634.2,2633.9,5.92563867]
[1748561340844,3.982,2634.2,2634.0,10.0]
[1748561341060,3.982,2634.2,2634.1,10.0]
[1748561342128,3.982,2634.2,2634.1,3.552765]
[1748561342448,3.982,2634.2,2634.1,3.217765]
[1748561342654,0.6667,2634.3,2634.2,2.046888]
[1748561342819,3.981,2634.2,2634.1,2.217679]
[1748561343017,0.6667,2634.3,2634.2,10.0]
[1748561343203,4.6477,2634.3,2634.2,3.065142]
[1748561344752,4.6477,2634.3,2634.2,3.215142]
[1748561345525,0.6667,2634.3,2634.2,8.21067946]
[1748561345847,3.981,2634.9,2634.8,14.54496]
[1748561346016,3.981,2634.9,2634.8,0.15]
[1748561346218,1.1778,2635.4,2634.9,18.29519992]
[1748561346422,3.981,2635.3,2635.1,13.40278]
[1748561346658,3.981,2635.3,2635.2,2.55678]
[1748561346821,3.981,2635.3,2635.2,10.0]
[1748561347022,1.1778,2635.4,2635.2,2.44927]
[1748561347336,1.1272,2635.2,2634.8,0.15]
[1748561347533,1.1272,2635.2,2634.9,13.991794]
[1748561347534,3.98,2635.1,2634.9,13.991794]
[1748561347736,3.98,2635.1,2634.8,3.94532129]
[1748561347932,3.98,2635.1,2635.0,10.0]
[1748561348120,1.1272,2635.2,2635.0,2.2946]
[1748561348326,8.90212239,2635.1,2635.0,0.15]
[1748561348527,4.92212239,2635.1,2635.0,0.15]
[1748561348760,8.90212239,2635.1,2635.0,0.15]
[1748561350271,3.79513068,2635.0,2634.5,10.0]
[1748561350427,3.79513068,2635.0,2634.5,6.571363]
[1748561350624,1.1947,2634.8,2634.6,3.646263]
[1748561350852,1.1284,2634.6,2633.8,10.0]
[1748561351062,1.1284,2634.6,2634.0,10.0]
[1748561351063,3.79605107,2634.4,2634.0,10.0]
[1748561351452,7.77611119,2634.3,2633.9,10.0]
[1748561351623,1.1284,2634.2,2633.9,10.0]
[1748561351824,1.1284,2634.2,2632.7,1.48098024]
[1748561351825,1.1284,2634.2,2633.5,2.666084]
[1748561352057,1.1284,2634.2,2633.1,10.0]
[1748561352058,4.92537503,2633.7,2633.2,10.0]
[1748561352243,7.77714309,2633.6,2633.2,10.0]
[1748561352692,3.79722802,2633.5,2632.9,10.0]
[1748561352983,3.79722802,2633.5,2632.7,4.91857014]
[1748561352984,5.0674996,2633.5,2632.7,3.63239582]
[1748561353183,5.0674996,2633.5,2632.9,10.0]
[1748561353543,6.2134996,2633.5,2631.9,1.0844]
[1748561353744,10.2892836,2633.6,2632.2,8.0]
[1748561353745,4.88280442,2632.7,2632.2,8.0]
[1748561353942,7.77863045,2632.6,2632.1,8.0]
[1748561354141,3.98,2632.6,2632.3,10.0]
[1748561354553,3.98,2632.6,2632.4,10.0]
[1748561354789,3.98,2632.6,2632.3,10.0]
[1748561354943,3.98,2632.6,2632.4,10.0]
[1748561355281,3.98,2632.6,2632.3,10.0]
[1748561355439,3.98,2632.6,2632.4,10.0]
[1748561355838,3.79792858,2633.1,2632.5,3.7985358]
[1748561356044,3.981,2633.0,2632.7,2.427004]
[1748561356239,3.981,2633.0,2632.7,10.0]
[1748561356440,3.981,2633.0,2632.8,10.0]
[1748561356643,3.981,2633.0,2632.8,2.353004]
[1748561357379,3.981,2633.0,2632.8,10.0]
[1748561357555,3.981,2633.0,2632.8,4.273374]
[1748561357760,1.1645,2633.2,2632.7,4.752374]
[1748561357960,3.981,2633.1,2632.7,4.752374]
[1748561358156,1.1645,2633.2,2632.9,23.79803151]
[1748561358389,3.79713009,2633.6,2632.9,23.79803151]
[1748561358390,1.1086,2633.5,2633.0,5.81412]
[1748561358687,1.1086,2633.5,2633.2,10.0]
[1748561358688,3.981,2633.4,2633.2,10.0]
[1748561358872,3.981,2633.4,2633.1,5.35112]
[1748561359072,3.79712885,2633.6,2633.2,10.0]
[1748561359257,0.98109765,2633.6,2633.1,2.666821]
[1748561359445,3.981,2633.5,2633.1,10.0]
[1748561359987,3.981,2633.4,2633.1,10.0]
[1748561360343,3.981,2633.4,2633.2,10.0]
[1748561360761,3.981,2633.4,2633.0,3.79788872]
[1748561361290,7.77838127,2633.4,2632.8,10.0]
[1748561361473,7.77838127,2633.4,2632.7,0.92468514]
[1748561361474,3.7976165,2633.3,2632.9,10.0]
[1748561361659,1.1499,2633.2,2632.8,8.0]
[1748561361860,7.77882392,2633.1,2632.8,10.0]
[1748561362066,3.981,2633.1,2632.8,10.0]
[1748561362272,3.981,2633.1,2632.7,3.79834645]
[1748561362475,0.77783813,2633.4,2632.8,3.449221]
[1748561362681,3.981,2633.3,2632.9,10.0]
[1748561362875,3.981,2633.3,2633.0,10.0]
[1748561363276,3.981,2633.3,2632.9,10.0]
[1748561363477,7.77852273,2633.3,2633.0,10.0]
[1748561364351,7.77852273,2633.3,2632.9,10.0]
[1748561364795,7.77854818,2633.3,2632.8,3.79813516]
[1748561365066,3.981,2633.3,2632.8,3.79813516]
[1748561365559,7.77854015,2633.3,2632.8,3.79813516]
[1748561366678,3.981,2633.3,2633.0,12.737354]
[1748561366877,3.981,2633.3,2633.1,10.0]
[1748561367191,7.77852551,2633.3,2633.0,2.090782]
[1748561367391,7.77852551,2633.3,2633.0,10.0]
[1748561367754,7.77852551,2633.3,2632.9,10.0]
[1748561368174,3.981,2633.3,2632.9,3.7980716]
[1748561368351,3.7974271,2633.4,2632.9,3.7980716]
[1748561368677,7.77853806,2633.3,2632.9,13.379725]
[1748561368880,3.981,2633.2,2632.9,3.79801216]
[1748561369070,3.981,2633.1,2633.0,3.212782]
[1748561369267,1.1345,2633.5,2633.3,3.79747975]
[1748561369467,3.981,2633.4,2633.3,12.8944]
[1748561369670,3.79700491,2633.7,2633.4,10.0]
[1748561369896,3.981,2633.6,2633.3,10.0]
[1748561370059,3.981,2633.6,2633.4,2.650928]
[1748561370256,3.79696177,2633.7,2633.4,2.177928]
[1748561370484,7.7781063,2633.6,2633.4,2.466771]
[1748561370688,7.7781063,2633.6,2633.3,10.0]
[1748561370856,7.7781063,2633.6,2633.2,16.2660939]
[1748561371068,7.7781063,2633.6,2633.2,12.444859]
[1748561371388,7.7781063,2633.6,2633.2,10.0]
[1748561371592,7.7781063,2633.6,2633.3,2.109341]
[1748561372759,7.7781063,2633.6,2633.2,10.0]
[1748561373068,7.7781063,2633.6,2633.3,10.0]
[1748561373270,7.7781063,2633.6,2633.3,2.494531]
[1748561373468,3.7971063,2633.6,2633.3,2.494531]
[1748561373798,3.98,2633.5,2633.3,2.494531]
[1748561373999,3.98,2633.5,2633.3,2.038387]
[1748561374208,1.192,2633.8,2633.4,6.496203]
[1748561374368,3.98,2633.7,2633.5,10.0]
[1748561374573,3.79708383,2633.6,2633.3,10.0]
[1748561374773,3.79708383,2633.6,2633.4,10.0]
[1748561375099,7.77700346,2633.7,2633.4,10.0]
[1748561375494,3.79710263,2633.6,2633.4,10.0]
[1748561375792,7.77732227,2633.5,2633.1,10.0]
[1748561376167,7.77732227,2633.5,2633.3,10.0]
[1748561376366,3.98,2633.5,2633.2,10.0]
[1748561376782,3.98,2633.5,2633.3,10.0]
[1748561377382,3.98,2633.5,2633.4,10.0]
[1748561377588,3.98,2633.5,2633.3,10.0]
[1748561378394,3.98,2633.5,2633.2,10.0]
[1748561378761,3.98,2633.5,2633.3,10.0]
[1748561379162,3.98,2633.5,2633.2,10.0]
[1748561379583,3.79745842,2633.4,2633.2,10.0]
[1748561379785,3.79745842,2633.4,2632.8,9.037625]
[1748561379786,8.95180015,2633.3,2632.9,3.677801]
[1748561379996,5.1542,2633.3,2633.0,2.368108]
[1748561380181,8.95177922,2633.3,2633.0,2.368108]
[1748561380383,3.79768054,2633.2,2632.9,10.0]
[1748561380690,3.98,2633.1,2632.8,10.0]
[1748561380891,3.98,2633.1,2633.0,10.0]
[1748561381622,3.98,2633.1,2632.9,10.0]
[1748561381906,3.98,2633.1,2632.8,10.0]
[1748561382370,7.77781164,2633.1,2632.8,10.0]
[1748561382572,3.98,2633.1,2632.8,10.0]
[1748561383290,3.98,2633.1,2632.9,10.0]
[1748561384177,3.98,2633.1,2633.0,10.0]
[1748561384623,3.98,2633.1,2633.0,2.735744]
[1748561386393,3.98,2633.1,2633.0,2.282089]
[1748561386613,3.98,2633.1,2632.9,3.7980564]
[1748561386984,1.1742,2633.3,2633.1,10.0]
[1748561387185,3.98,2633.2,2633.1,2.088705]
[1748561388116,3.98,2633.2,2633.0,10.0]
[1748561388321,7.77769636,2633.2,2632.9,10.0]
[1748561388678,7.77769636,2633.2,2632.8,10.0]
[1748561388886,7.77769636,2633.2,2632.8,13.79823583]
[1748561389087,7.77769636,2633.2,2632.9,10.0]
[1748561389493,3.98,2633.2,2633.0,10.0]
[1748561389708,3.98,2633.2,2632.9,10.0]
[1748561389911,3.98,2633.2,2633.0,2.021043]
[1748561390223,3.98,2633.2,2633.0,2.053043]
[1748561390381,3.98,2633.1,2633.0,2.053043]
[1748561390893,3.98,2633.1,2632.9,13.7980806]
[1748561391093,3.98,2633.1,2633.0,3.376143]
[1748561391421,3.79684598,2633.8,2633.3,7.77896202]
[1748561391724,3.79731807,2633.5,2633.2,10.0]
[1748561392015,3.979,2633.4,2633.3,10.0]
[1748561392224,7.77637221,2633.4,2633.2,10.0]
[1748561392423,7.77637221,2633.4,2633.1,2.5113185]
[1748561392581,3.979,2633.4,2633.1,2.5113185]
[1748561392787,7.77637816,2633.4,2633.3,10.0]
[1748561393208,3.979,2633.4,2633.2,10.0]
[1748561393537,3.979,2633.4,2633.1,2.5113185]
[1748561393538,3.979,2633.4,2633.1,10.0]
[1748561393680,3.979,2633.4,2632.9,2.5113185]
[1748561393681,7.77644769,2633.4,2633.0,8.0]
[1748561394123,7.77644769,2633.4,2632.9,2.5113185]
[1748561394124,3.7976239,2633.3,2632.9,2.5113185]
[1748561394286,7.77638548,2633.4,2632.9,12.5113185]
[1748561394287,3.979,2633.2,2632.9,12.5113185]
[1748561394488,3.979,2633.2,2633.0,10.0]
[1748561394793,3.979,2633.2,2632.9,2.5113185]
[1748561394794,3.979,2633.2,2632.9,12.5113185]
[1748561394993,3.979,2633.2,2633.0,10.0]
[1748561395613,3.979,2633.2,2632.9,2.5113185]
[1748561395614,3.979,2633.2,2632.9,12.5113185]
[1748561396236,3.979,2633.2,2633.0,10.0]
[1748561396398,3.979,2633.2,2632.9,12.5113185]
[1748561397042,3.979,2633.2,2633.1,10.0]
[1748561397196,3.979,2633.2,2633.1,2.056098]
[1748561397397,3.979,2633.2,2633.0,10.0]
[1748561398133,3.979,2633.2,2632.9,12.5113185]
[1748561398540,3.979,2633.2,2633.1,10.0]
[1748561398737,3.979,2633.2,2633.1,2.057098]
[1748561399413,1.70353254,2634.5,2633.2,9.7129]
[1748561399611,3.979,2634.2,2633.9,2.5113185]
[1748561399813,3.979,2634.1,2633.9,2.5113185]
[1748561400125,3.979,2634.0,2633.9,10.0]
[1748561400326,3.979,2634.0,2633.7,6.30817644]
[1748561400530,3.979,2634.0,2633.7,6.30821819]
[1748561400838,3.979,2633.9,2633.6,10.0]
[1748561401023,3.979,2633.9,2633.6,13.79707913]
[1748561401356,3.79686595,2633.8,2633.2,12.945747]
[1748561401556,3.79732649,2633.5,2633.3,10.0]
[1748561401786,3.978,2633.4,2633.1,12.346594]
[1748561402057,3.978,2633.4,2633.1,10.0]
[1748561402058,1.1555,2633.3,2633.1,10.0]
[1748561402267,3.978,2633.2,2632.9,12.5113185]
[1748561402413,3.79780486,2633.1,2632.8,10.0]
[1748561402614,3.978,2633.0,2632.8,5.79934197]
[1748561402845,4.95308967,2633.3,2632.8,6.30418497]
[1748561402846,3.978,2632.9,2632.8,6.30418497]
[1748561403031,3.978,2632.9,2632.8,8.81550347]
[1748561403234,3.978,2632.9,2632.8,6.30947847]
[1748561403944,3.978,2632.9,2632.4,13.17868937]
[1748561403945,3.978,2632.9,2632.6,3.79847585]
[1748561404148,3.978,2632.9,2632.8,10.0]
[1748561404451,7.77611066,2632.9,2632.7,10.0]
[1748561404757,1.2215,2632.8,2632.6,10.0]
[1748561404918,3.978,2632.7,2632.5,5.214125]
[1748561405116,3.978,2632.7,2632.4,10.0]
[1748561405427,3.978,2632.7,2631.7,1.1942]
[1748561405428,1.2142,2632.4,2631.7,1.1942]
[1748561405651,4.49795,2632.7,2631.7,1.1942]
[1748561405652,3.978,2632.3,2631.8,3.79968082]
[1748561405849,5.01269054,2632.7,2632.1,5.96639174]
[1748561405850,3.978,2632.2,2632.1,5.96639174]
[1748561406066,3.978,2632.2,2632.0,3.79932108]
[1748561406249,1.2142,2632.7,2632.0,1.1526]
[1748561406450,3.978,2632.6,2632.3,3.79888943]
[1748561406651,3.978,2632.6,2632.2,13.79903737]
[1748561406851,3.978,2632.6,2632.4,10.0]
[1748561407055,3.978,2632.6,2632.4,3.79880942]
[1748561407252,1.2142,2632.7,2632.4,3.79880942]
[1748561407455,3.978,2632.5,2632.4,7.04329642]
[1748561407634,1.2142,2632.7,2632.4,7.04329642]
[1748561407635,1.2202,2633.0,2632.4,11.79329013]
[1748561407838,3.979,2632.9,2632.6,3.79840566]
[1748561408152,3.979,2632.8,2632.6,3.79840566]
[1748561408350,1.2202,2633.0,2632.6,3.79847227]
[1748561408678,3.979,2632.9,2632.6,3.79847227]
[1748561409040,3.979,2632.9,2632.5,12.93336154]
[1748561409993,3.979,2632.9,2632.5,12.93322971]
[1748561410279,3.979,2632.8,2632.7,11.79832829]
[1748561410782,3.979,2632.8,2632.7,15.02916329]
[1748561410951,3.979,2632.8,2632.7,13.97137729]
[1748561411150,3.979,2632.8,2632.7,11.79832829]
[1748561411552,3.979,2632.8,2632.7,14.47932029]
[1748561411755,3.979,2632.8,2632.7,11.79832829]
[1748561412359,4.97977386,2633.2,2632.7,11.79832829]
[1748561412562,3.979,2633.1,2632.7,8.0]
[1748561412871,3.979,2633.0,2632.7,8.0]
[1748561413380,3.979,2632.9,2632.7,8.0]
[1748561413589,3.979,2632.9,2632.4,8.0]
[1748561413742,3.79875385,2632.5,2632.0,10.0]
[1748561413947,1.1207,2632.3,2632.0,10.0]
[1748561414142,1.1207,2632.3,2632.1,8.0]
[1748561414483,1.1207,2632.3,2631.8,2.748261]
[1748561414643,4.91975114,2632.3,2631.9,1.40063032]
[1748561414843,4.91975114,2632.3,2631.9,9.40063032]
[1748561415038,4.91975114,2632.3,2631.9,8.0]
[1748561415853,5.95063842,2632.3,2631.7,14.96055234]
[1748561416170,3.7991343,2632.2,2631.7,3.79975234]
[1748561416483,7.77736906,2632.1,2631.6,10.0]
[1748561416691,3.79959773,2631.9,2631.6,10.0]
[1748561416904,3.79959773,2631.9,2631.4,3.80018316]
[1748561416905,5.1415,2631.8,2631.4,10.0]
[1748561417060,3.979,2631.7,2631.5,2.574208]
[1748561417263,3.979,2631.7,2631.6,12.642267]
[1748561417559,3.979,2631.7,2631.6,6.4422366]
[1748561417892,3.979,2631.7,2631.6,6.4421366]
[1748561418045,1.1334,2632.0,2631.7,7.02798015]
[1748561418240,3.979,2631.9,2631.5,3.800114]
[1748561418447,3.979,2631.9,2631.5,19.89130279]
[1748561418643,3.979,2631.9,2631.5,13.889288]
[1748561418864,3.979,2631.9,2631.7,10.0]
[1748561419150,3.979,2631.9,2631.6,3.7999213]
[1748561419562,3.979,2631.8,2631.6,17.6039467]
[1748561419750,3.979,2631.8,2631.7,7.0278352]
[1748561420271,3.979,2631.8,2631.7,3.7998252]
[1748561420877,3.979,2631.8,2631.6,3.7998912]
[1748561421178,3.979,2631.8,2631.7,2.739474]
[1748561421390,4.3769,2631.8,2631.5,8.0]
[1748561421774,3.979,2631.8,2631.5,11.80011189]
[1748561423236,1.1334,2632.0,2631.7,3.79981409]
[1748561423390,3.979,2631.9,2631.7,3.79981409]
[1748561424099,3.979,2631.8,2631.7,3.79981409]
[1748561424339,3.979,2631.8,2631.7,7.01883209]
[1748561424476,3.979,2631.8,2631.6,10.0]
[1748561424878,1.1076,2631.5,2631.1,11.80060766]
[1748561425125,3.979,2631.4,2631.2,8.0]
[1748561425288,3.979,2631.3,2631.2,14.05772658]
[1748561425620,1.1076,2631.7,2631.2,8.0]
[1748561425788,3.79929441,2632.1,2631.4,8.0]
[1748561425789,3.979,2631.6,2631.4,8.0]
[1748561426113,3.979,2631.6,2631.5,9.82979628]
[1748561426337,1.066,2632.0,2631.6,3.7999534]
[1748561426622,3.979,2631.9,2631.6,13.7999534]
[1748561426852,3.979,2631.9,2631.6,3.7999534]
[1748561427118,3.979,2631.9,2631.6,10.0]
[1748561427339,3.979,2631.9,2631.4,8.0]
[1748561427493,3.979,2631.8,2631.5,2.760239]
[1748561427694,3.979,2631.8,2631.6,10.0]
[1748561428110,3.979,2631.8,2631.4,11.80018812]
[1748561428299,3.979,2631.8,2631.5,2.008739]
[1748561428485,3.979,2631.8,2631.5,2.110839]
[1748561428685,3.979,2631.8,2631.6,10.0]
[1748561428902,3.979,2631.8,2631.4,8.0]
[1748561429116,3.979,2631.8,2631.4,11.80018705]
[1748561429503,3.979,2631.8,2631.5,2.7151]
[1748561429698,3.979,2631.7,2631.6,3.79990655]
[1748561429900,3.979,2631.7,2631.6,13.79990655]
[1748561430381,3.979,2631.7,2631.1,5.90749371]
[1748561430581,1.127,2631.6,2631.3,10.0]
[1748561431397,1.127,2631.6,2631.4,10.0]
[1748561433042,1.127,2631.6,2631.3,10.0]
[1748561433250,1.127,2631.6,2631.0,0.66666667]
[1748561433449,5.00939172,2631.1,2631.0,0.66666667]
[1748561433588,5.55939172,2631.1,2631.0,0.66666667]
[1748561433790,5.00939172,2631.1,2631.0,0.66666667]
[1748561434100,10.05439172,2631.1,2631.0,0.66666667]
[1748561434284,6.2537,2631.1,2631.0,0.66666667]
[1748561434487,5.00939172,2631.1,2631.0,0.66666667]
[1748561434714,3.80024623,2631.5,2631.0,0.66666667]
[1748561434921,3.979,2631.4,2631.0,0.66666667]
[1748561435099,3.80069172,2631.1,2631.0,0.66666667]
[1748561435315,8.97279172,2631.1,2631.0,0.66666667]
[1748561435789,4.99379172,2631.1,2631.0,0.66666667]
[1748561435994,10.03879172,2631.1,2631.0,0.66666667]
[1748561436637,10.58879172,2631.1,2631.0,0.66666667]
[1748561436788,11.13308204,2631.1,2631.0,0.66666667]
[1748561437991,3.80358297,2629.1,2627.7,8.75500423]
[1748561438203,1.1385,2629.5,2628.8,8.245576]
[1748561438204,3.98,2629.0,2628.8,8.245576]
[1748561438502,3.98,2628.9,2628.8,16.245576]
[1748561438700,3.98,2628.9,2628.8,8.0]
[1748561438919,3.98,2628.9,2628.8,18.0]
[1748561439112,3.98,2628.9,2628.8,20.27499937]
[1748561439557,3.98,2628.9,2628.8,12.27499937]
[1748561439773,3.98,2628.9,2628.8,20.27499937]
[1748561440435,8.4416327,2631.1,2628.8,20.27499937]
[1748561440436,3.80271513,2629.7,2628.9,10.0]
[1748561440634,3.80259615,2629.8,2629.6,4.74999371]
[1748561440836,3.80367707,2629.1,2628.9,8.780041]
[1748561441029,3.981,2629.0,2628.9,0.99366741]
[1748561441275,3.981,2629.0,2628.9,7.285041]
[1748561441276,7.78472765,2629.0,2628.9,7.285041]
[1748561441448,3.80401704,2628.8,2628.6,1.1195]
[1748561441642,3.8038874,2628.9,2628.6,1.1195]
[1748561441643,3.981,2628.7,2628.6,1.1195]
[1748561442047,3.981,2628.7,2628.6,4.175476]
[1748561442243,3.981,2628.7,2628.2,8.005]
[1748561442244,3.80459595,2628.4,2628.2,0.005]
[1748561442444,7.7857407,2628.3,2628.2,0.005]
[1748561442850,3.80452261,2628.5,2628.2,0.005]
[1748561443198,3.80394243,2628.9,2628.3,10.0]
[1748561443199,3.982,2628.4,2628.3,10.0]
[1748561443335,3.982,2628.4,2628.3,2.064]
[1748561444042,3.8047407,2628.3,2628.2,10.005]
[1748561444237,3.8047407,2628.3,2628.2,0.005]
[1748561445238,3.982,2628.3,2628.2,0.005]
[1748561445436,3.982,2628.3,2628.2,4.75499371]
[1748561446085,7.7867407,2628.3,2628.2,4.75499371]
[1748561446385,7.7867407,2628.3,2628.2,0.005]
[1748561446745,9.0041407,2628.3,2628.2,0.005]
[1748561447238,9.5541407,2628.3,2628.2,0.005]
[1748561447443,5.0221407,2628.3,2628.2,0.005]
[1748561447664,10.0731407,2628.3,2628.2,0.005]
[1748561448563,10.6231407,2628.3,2628.2,0.005]
[1748561449371,6.0891407,2628.3,2628.2,0.005]
[1748561449590,5.0221407,2628.3,2628.2,0.005]
[1748561449790,10.0791407,2628.3,2628.2,0.005]
[1748561450169,10.0781407,2628.3,2628.2,0.005]
[1748561450368,3.8047407,2628.3,2628.2,0.005]
[1748561450595,8.8607407,2628.3,2628.2,0.005]
[1748561451866,10.0172407,2628.3,2628.2,0.005]
[1748561453219,3.80606745,2627.4,2627.1,18.0]
[1748561453509,3.80599245,2627.5,2627.1,10.27499937]
[1748561453692,3.80558544,2627.8,2627.4,4.74999371]
[1748561453864,3.99,2627.7,2627.6,6.899974]
[1748561454307,7.79560946,2627.7,2627.6,3.072314]
[1748561454521,3.99,2627.7,2627.6,3.072314]
[1748561454701,8.211,2628.8,2627.7,10.0]
[1748561455008,8.211,2628.8,2627.6,4.65454477]
[1748561455009,3.8051345,2628.1,2627.9,18.01343]
[1748561455165,3.80490306,2628.2,2627.9,18.01343]
[1748561455166,3.992,2628.0,2627.9,8.01343]
[1748561455366,7.79717503,2628.0,2627.9,5.54843]
[1748561455568,3.992,2628.0,2627.9,5.54843]
[1748561455768,7.79717503,2628.0,2627.9,5.54843]
[1748561456004,3.80517503,2628.0,2627.9,5.54843]
[1748561456185,7.79517503,2628.0,2627.9,2.715]
[1748561456619,3.80531983,2627.9,2627.8,13.79199371]
[1748561456770,3.989,2627.9,2627.8,1.042]
[1748561456976,7.79431983,2627.9,2627.8,3.657]
[1748561457176,7.79431983,2627.9,2627.8,1.042]
[1748561457403,7.79431983,2627.9,2627.8,3.757]
[1748561457603,7.79431983,2627.9,2627.8,1.042]
[1748561458198,7.79431983,2627.9,2627.8,3.297]
[1748561458599,7.79431983,2627.9,2627.8,3.106]
[1748561459125,3.989,2627.9,2627.8,3.106]
[1748561459529,1.194,2628.6,2627.9,10.0]
[1748561459732,1.067,2628.4,2627.9,14.74999371]
[1748561460034,3.80498331,2628.2,2628.0,6.860366]
[1748561460244,3.80476432,2628.3,2628.1,10.0]
[1748561460524,3.985,2628.2,2628.1,10.0]
[1748561460684,7.78988547,2628.2,2628.0,10.0]
[1748561460889,7.78988547,2628.2,2628.1,10.0]
[1748561461091,7.78988547,2628.2,2628.1,2.269389]
[1748561461300,1.067,2628.5,2628.1,2.269389]
[1748561461502,7.78962381,2628.4,2628.1,2.269389]
[1748561461695,9.3856,2628.8,2628.3,19.67256]
[1748561461902,8.211,2628.8,2628.4,8.0]
[1748561462088,8.211,2628.8,2628.6,10.0]
[1748561462089,3.985,2628.7,2628.6,10.0]
[1748561462495,3.80441338,2628.6,2628.2,9.042]
[1748561462694,7.78920497,2628.7,2628.4,8.0]
[1748561462993,3.80418023,2628.7,2628.4,8.0]
[1748561463216,8.211,2628.8,2628.4,8.0]
[1748561463427,7.79116483,2628.7,2628.3,12.310869]
[1748561463592,7.79116483,2628.7,2628.5,2.19732]
[1748561463793,8.211,2628.8,2628.5,9.34484]
[1748561463794,12.0150941,2628.8,2628.5,9.34484]
[1748561464130,3.80457426,2628.5,2627.7,1.042]
[1748561464334,6.2276,2628.7,2627.7,1.042]
[1748561464335,1.1746,2628.7,2627.8,7.07358671]
[1748561464569,1.1746,2628.7,2628.1,5.79199371]
[1748561464832,3.80351693,2629.2,2628.7,13.80402801]
[1748561465034,1.067,2629.4,2629.0,8.0]
[1748561465334,3.80295345,2629.6,2629.1,4.84558297]
[1748561465335,4.0,2629.3,2629.1,4.84558297]
[1748561465491,1.1746,2629.7,2629.1,4.84558297]
[1748561465492,4.0,2629.2,2629.1,9.042]
[1748561465908,4.0,2629.2,2629.1,12.84558297]
[1748561466103,3.80231843,2630.0,2629.1,12.84558297]
[1748561466104,1.2141,2630.4,2629.5,3.80288682]
[1748561466331,1.067,2630.6,2630.1,20.0]
[1748561466532,1.067,2630.6,2630.2,10.0]
[1748561466704,1.067,2630.6,2630.1,8.0]
[1748561466705,4.003,2630.5,2630.1,8.0]
[1748561467229,7.80467187,2630.5,2630.0,1.042]
[1748561467539,7.80467187,2630.5,2630.1,8.0]
[1748561467724,7.80467187,2630.5,2630.0,9.042]
[1748561467926,4.003,2630.5,2630.3,10.0]
[1748561468127,4.003,2630.5,2630.2,2.098252]
[1748561468343,4.003,2630.5,2630.1,8.0]
[1748561468667,7.80460153,2630.5,2630.0,1.042]
[1748561468869,7.80460153,2630.5,2630.1,10.0]
[1748561469149,7.80460153,2630.5,2629.7,4.74999371]
[1748561469150,7.80460577,2630.5,2629.7,1.042]
[1748561469363,3.80220752,2630.1,2629.8,10.0]
[1748561469615,3.80220752,2630.1,2629.7,1.042]
[1748561469616,4.004,2630.0,2629.7,1.042]
[1748561469768,4.004,2630.0,2629.8,10.0]
[1748561469974,4.004,2630.0,2629.8,18.0]
[1748561470284,1.1534,2630.5,2629.9,8.0]
[1748561470569,3.80201558,2630.2,2629.8,8.0]
[1748561470885,4.002,2630.1,2629.8,8.0]
[1748561471183,4.002,2630.1,2629.8,11.80253394]
[1748561471386,4.002,2630.1,2629.8,13.56198671]
[1748561471555,4.002,2630.1,2629.8,9.75945277]
[1748561472056,4.002,2630.1,2629.8,13.56201405]
[1748561472251,4.002,2630.1,2629.8,9.75945277]
[1748561472455,4.002,2630.1,2629.8,8.0]
[1748561472671,7.80415914,2630.1,2629.8,8.0]
[1748561473054,4.002,2630.1,2629.8,8.0]
[1748561473265,4.002,2630.1,2629.9,2.079495]
[1748561473477,4.95572961,2630.0,2629.2,5.310536]
[1748561473657,3.80152986,2630.6,2629.1,6.41493748]
[1748561473658,1.1534,2630.7,2629.8,8.0]
[1748561473857,1.1534,2630.7,2630.2,13.80191319]
[1748561473858,2.2194,2630.7,2630.2,13.80191319]
[1748561474088,1.066,2630.7,2630.3,22.74999371]
[1748561474284,1.066,2631.3,2630.7,9.774436]
[1748561474490,1.066,2631.3,2630.9,4.74999371]
[1748561474692,1.066,2631.3,2631.0,13.88368155]
[1748561474983,1.2112,2631.8,2630.7,10.0]
[1748561474984,4.021,2631.2,2630.7,10.0]
[1748561475144,4.022,2631.1,2630.8,11.80110949]
[1748561475357,4.022,2631.0,2630.9,2.110131]
[1748561475655,4.022,2631.0,2630.9,11.80098065]
[1748561475881,4.022,2631.0,2630.9,14.92345165]
[1748561476092,4.022,2631.0,2630.9,15.45133465]
[1748561476247,3.79986359,2631.7,2631.2,3.055779]
[1748561476448,3.80011766,2631.5,2631.1,8.0]
[1748561476769,4.022,2631.6,2631.1,8.0]
[1748561476770,3.80026931,2631.4,2631.1,8.0]
[1748561476947,1.09,2631.7,2631.2,2.7676]
[1748561477147,4.022,2631.6,2631.4,10.0]
[1748561477388,4.022,2631.6,2631.3,10.0]
[1748561477679,3.80012117,2631.5,2631.3,10.0]